fUSD/lending_fUSD_20260520
["ID","MTS","AMOUNT","RATE_DAILY","PERIOD"]
[422696242,1779259584000,-5984591.0,0.00028,120]
[422696241,1779259584000,-500.0,0.00027836,120]
[422696243,1779259588000,-6000000.0,0.00028,120]
[422696244,1779259593000,-6000000.0,0.00028,120]
[422696245,1779259622000,-6000000.0,0.00028,120]
[422696247,1779259626000,-500.0,0.00028,120]
[422696248,1779259626000,-500.0,0.00028328,120]
[422696249,1779259626000,-500.0,0.0002852,120]
[422696246,1779259626000,-1565231.71339441,0.00028,120]
[422696253,1779259626000,-1440.8,0.0003013,120]
[422696252,1779259626000,-160.0,0.0003,120]
[422696250,1779259626000,-500.0,0.00028712,120]
[422696251,1779259626000,-162.05,0.00028973,120]
[422696256,1779259630000,418.68,0.00029479,120]
[422696255,1779259630000,418.68,0.00028657,120]
[422696254,1779259630000,418.68,0.00027835,120]
[422696257,1779259684000,2000.0,0.0002876,120]
[422696258,1779259696000,1350.71170808,0.0002876,120]
[422696259,1779259712000,587.32203311,0.00028767,120]
[422696260,1779259718000,2000.0,0.0002876,120]
[422696261,1779259727000,2000.0,0.0002876,120]
[422696262,1779259737000,237.50008681,0.00024456,120]
[422696263,1779259751000,2000.0,0.0002876,120]
[422696265,1779259754000,-250.0,5.531e-05,2]
[422696266,1779259754000,-407.94,5.661e-05,2]
[422696264,1779259754000,-407.94,5.401e-05,2]
[422696269,1779259754000,-250.0,5.941e-05,2]
[422696267,1779259754000,-500.0,5.894e-05,2]
[422696268,1779259754000,-407.94,5.921e-05,2]
[422696271,1779259754000,-407.94,6.441e-05,2]
[422696280,1779259754000,-120.5773,7.615e-05,2]
[422696272,1779259754000,-150.0,6.5e-05,2]
[422696275,1779259754000,-407.94,6.701e-05,2]
[422696273,1779259754000,-150.0,6.5e-05,2]
[422696278,1779259754000,-407.94,7.481e-05,2]
[422696279,1779259754000,-410.0,7.6e-05,2]
[422696276,1779259754000,-407.94,6.961e-05,2]
[422696277,1779259754000,-407.94,7.221e-05,2]
[422696274,1779259754000,-150.0,6.5e-05,2]
[422696270,1779259754000,-407.94,6.181e-05,2]
[422696281,1779259758000,200.0,5e-05,120]
[422696282,1779259760000,174.28,1.8e-06,2]
[422696283,1779259761000,2000.0,0.0002876,120]
[422696284,1779259771000,2000.0,0.0002876,120]
[422696285,1779259776000,152.0,9.724e-05,7]
[422696286,1779259777000,152.0,9.724e-05,7]
[422696287,1779259778000,152.0,0.00010053,30]
[422696288,1779259783000,1078.59,0.00028767,120]
[422696289,1779259804000,198.0,0.00028418,120]
[422696290,1779259805000,2000.0,0.0002876,120]
[422696291,1779259815000,2000.0,0.0002876,120]
[422696292,1779259828000,533.72,0.00015,120]
[422696319,1779259832000,-407.94,8.781e-05,2]
[422696314,1779259832000,-175.0,8.341e-05,2]
[422696318,1779259832000,-1680.0,8.739e-05,2]
[422696320,1779259832000,-407.94,9.041e-05,2]
[422696323,1779259832000,-160.0,9.38e-05,2]
[422696316,1779259832000,-300.0,8.738e-05,2]
[422696330,1779259832000,-150.0,9.844e-05,2]
[422696324,1779259832000,-215.20247212,9.389e-05,2]
[422696322,1779259832000,-407.94,9.301e-05,2]
[422696325,1779259832000,-208.63953863,9.389e-05,2]
[422696317,1779259832000,-300.0,8.738e-05,2]
[422696328,1779259832000,-2351.0,9.612e-05,2]
[422696327,1779259832000,-420.0,9.612e-05,2]
[422696336,1779259832000,-179.81,0.00010392,2]
[422696329,1779259832000,-407.94,9.821e-05,2]
[422696321,1779259832000,-166.67,9.212e-05,2]
[422696312,1779259832000,-407.94,8.001e-05,2]
[422696298,1779259832000,-334.0,7.646e-05,2]
[422696311,1779259832000,-150.0,7.956e-05,2]
[422696295,1779259832000,-150.0,7.292e-05,2]
[422696296,1779259832000,-164.4227,7.615e-05,2]
[422696297,1779259832000,-266.0,7.631e-05,2]
[422696294,1779259832000,-250.0,7.137e-05,2]
[422696300,1779259832000,-1104.0,7.686e-05,2]
[422696299,1779259832000,-376.0,7.661e-05,2]
[422696304,1779259832000,-1609.78,7.915e-05,2]
[422696313,1779259832000,-407.94,8.261e-05,2]
[422696302,1779259832000,-407.94,7.741e-05,2]
[422696310,1779259832000,-1525.632524,7.945e-05,2]
[422696307,1779259832000,-364.65,7.915e-05,2]
[422696305,1779259832000,-299.99,7.915e-05,2]
[422696306,1779259832000,-9999.99,7.915e-05,2]
[422696308,1779259832000,-964.11,7.944e-05,2]
[422696303,1779259832000,-234.95292507,7.915e-05,2]
[422696309,1779259832000,-1200.0,7.944e-05,2]
[422696301,1779259832000,-950.95200143,7.702e-05,2]
[422696332,1779259832000,-407.94,0.00010081,2]
[422696315,1779259832000,-407.94,8.521e-05,2]
[422696326,1779259832000,-407.94,9.561e-05,2]
[422696356,1779259832000,-500.0,0.00011152,2]
[422696355,1779259832000,-500.0,0.00011152,2]
[422696357,1779259832000,-500.0,0.00011152,2]
[422696361,1779259832000,-500.0,0.00011152,2]
[422696359,1779259832000,-500.0,0.00011152,2]
[422696360,1779259832000,-500.0,0.00011152,2]
[422696358,1779259832000,-500.0,0.00011152,2]
[422696352,1779259832000,-500.0,0.00011152,2]
[422696369,1779259832000,-500.0,0.00011152,2]
[422696364,1779259832000,-500.0,0.00011152,2]
[422696363,1779259832000,-500.0,0.00011152,2]
[422696362,1779259832000,-500.0,0.00011152,2]
[422696370,1779259832000,-500.0,0.00011152,2]
[422696331,1779259832000,-164.88,0.00010065,2]
[422696365,1779259832000,-500.0,0.00011152,2]
[422696368,1779259832000,-500.0,0.00011152,2]
[422696366,1779259832000,-500.0,0.00011152,2]
[422696353,1779259832000,-588.87861196,0.00011152,2]
[422696367,1779259832000,-500.0,0.00011152,2]
[422696351,1779259832000,-500.0,0.00011152,2]
[422696354,1779259832000,-175.38663011,0.00011152,2]
[422696333,1779259832000,-318672.56645204,0.00010192,2]
[422696334,1779259832000,-36825.72608591,0.00010192,2]
[422696335,1779259832000,-75489.80706205,0.00010192,2]
[422696337,1779259832000,-1031.46,0.00010396,2]
[422696339,1779259832000,-3292.0,0.00010574,2]
[422696340,1779259832000,-2000.0,0.00010742,2]
[422696342,1779259832000,-900.0,0.000109,3]
[422696349,1779259832000,-500.0,0.00011152,2]
[422696341,1779259832000,-400.0,0.000108,3]
[422696343,1779259832000,-150.0,0.00010959,2]
[422696345,1779259832000,-7940.43340816,0.000111,2]
[422696350,1779259832000,-500.0,0.00011152,2]
[422696344,1779259832000,-150.0,0.00010959,2]
[422696348,1779259832000,-251.80903146,0.00011152,2]
[422696346,1779259832000,-812.53309298,0.00011143,2]
[422696347,1779259832000,-235.85570799,0.00011152,2]
[422696338,1779259832000,-587.0,0.00010573,2]
[422696373,1779259833000,-500.0,0.00011152,2]
[422696371,1779259833000,-500.0,0.00011152,2]
[422696376,1779259833000,-1929.27379233,0.00011153,2]
[422696374,1779259833000,-403.59295398,0.00011152,2]
[422696375,1779259833000,-353.8945,0.00011153,2]
[422696372,1779259833000,-500.0,0.00011152,2]
[422696382,1779259837000,-39599.25956327,0.00011153,2]
[422696381,1779259837000,-261.33388889,0.000107,2]
[422696385,1779259837000,-1010.20423836,0.00011153,2]
[422696380,1779259837000,-308.86650893,0.00010191,2]
[422696384,1779259837000,-383.736,0.00011153,2]
[422696386,1779259837000,-909.41682512,0.00011153,2]
[422696383,1779259837000,-258.6,0.00011153,2]
[422696390,1779259838000,-45350.0,0.00011153,2]
[422696388,1779259838000,-805.6,0.00011153,2]
[422696389,1779259838000,-20755.76943862,0.00011153,2]
[422696387,1779259838000,-351.22845105,0.00011153,2]
[422696397,1779259840000,-776.04177982,0.00011153,2]
[422696395,1779259840000,-303130.58330491,0.00011153,2]
[422696396,1779259840000,-1198.04289802,0.00011153,2]
[422696394,1779259840000,-534.0,0.00011153,2]
[422696410,1779259842000,-457.68,0.000111,2]
[422696412,1779259842000,-532.12702922,0.00011153,2]
[422696411,1779259842000,-8468.21000001,0.000111,2]
[422696413,1779259843000,-1819.82454241,0.00011153,2]
[422696479,1779259845000,-1557.76467657,0.00011153,2]
[422696484,1779259846000,-3402.44500968,0.00011153,2]
[422696482,1779259846000,-970.0,0.00011153,2]
[422696483,1779259846000,-1127.99615857,0.00011153,2]
[422696481,1779259846000,-3594.95959537,0.00011153,2]
[422696480,1779259846000,-8860.19303337,0.00011153,2]
[422696486,1779259848000,152.0,9.728e-05,7]
[422696487,1779259848000,386.12,0.000266,120]
[422696488,1779259848000,386.12,0.000266,120]
[422696489,1779259848000,386.12,0.000266,120]
[422696490,1779259849000,386.12,0.00028,120]
[422696491,1779259849000,386.12,0.00028,120]
[422696493,1779259850000,519.82054601,0.00024737,120]
[422696492,1779259850000,2000.0,0.0002876,120]
[422696494,1779259859000,2000.0,0.0002876,120]
[422696495,1779259871000,152.0,9.729e-05,7]
[422696496,1779259893000,2000.0,0.0002876,120]
[422696497,1779259903000,2000.0,0.0002876,120]
[422696498,1779259904000,319.53097336,0.0002485,120]
[422696499,1779259937000,2000.0,0.0002876,120]
[422696500,1779259944000,161.433,0.00028767,120]
[422696501,1779259946000,2000.0,0.0002876,120]
[422696502,1779259972000,312.57,0.000266,120]
[422696503,1779259982000,2000.0,0.0002876,120]
[422696504,1779259999000,202.275377,0.00026588,120]
[422696505,1779260019000,480.34,0.00015,120]
[422696506,1779260025000,2000.0,0.0002876,120]
[422696507,1779260061000,168.29052317,0.0001,30]
[422696509,1779260069000,539.986,0.0002876,120]
[422696508,1779260069000,500.0,0.0002876,120]
[422696512,1779260129000,500.0,0.00028486,120]
[422696511,1779260129000,500.0,0.00028486,120]
[422696510,1779260129000,500.0,0.00028486,120]
[422696514,1779260130000,500.0,0.00028486,120]
[422696513,1779260130000,500.0,0.00028486,120]
[422696515,1779260132000,500.0,0.00028212,120]
[422696516,1779260133000,500.0,0.00028212,120]
[422696518,1779260150000,-171.13,8.113e-05,2]
[422696517,1779260150000,-500.0,7.192e-05,2]
[422696519,1779260150000,-1128.87,9.792e-05,2]
[422696520,1779260190000,150.0,0.00011233,120]
[422696521,1779260210000,432.31,0.00015,120]
[422696522,1779260259000,253.298,0.0002876,120]
[422696525,1779260315000,-301.19063984,8.416e-05,2]
[422696523,1779260315000,-500.0,7.092e-05,2]
[422696524,1779260315000,-1032.63826349,8.416e-05,2]
[422696526,1779260315000,-366.17109667,8.416e-05,2]
[422696527,1779260399000,389.08,0.00015,120]
[422696528,1779260400000,150.0,0.00017795,120]
[422696529,1779260401000,249.32564343,0.00017795,120]
[422696530,1779260589000,350.17,0.00015,120]
[422696531,1779260714000,1855.67311536,0.000274,120]
[422696532,1779260725000,322.37060112,0.0002465,120]
[422696533,1779260763000,700.24,4.618e-05,2]
[422696534,1779260763000,700.24,4.852e-05,2]
[422696535,1779260763000,319.80461236,5.085e-05,2]
[422696537,1779260764000,700.24,5.319e-05,2]
[422696536,1779260764000,380.43538764,5.085e-05,2]
[422696538,1779260779000,315.15,0.00015,120]
[422696539,1779260853000,400.0,0.0001,3]
[422696541,1779260898000,-700.24,5.786e-05,2]
[422696540,1779260898000,-700.24,5.552e-05,2]
[422696542,1779260941000,1000.0,0.00028766,120]
[422696543,1779260944000,356.25013023,0.00024791,120]
[422696544,1779260963000,500.0,0.0002876,120]
[422696545,1779260964000,930.0,0.0002876,120]
[422696546,1779260970000,283.64,0.00015,120]
[422696547,1779260974000,166.25006078,0.00024824,120]
[422696548,1779261000000,239.59538606,0.00017795,120]
[422696549,1779261006000,171.0,0.00028684,120]
[422696557,1779261032000,-134.31744358,6.486e-05,2]
[422696559,1779261032000,-76.37566446,6.72e-05,2]
[422696561,1779261032000,-700.24,6.953e-05,2]
[422696560,1779261032000,-623.86433554,6.72e-05,2]
[422696554,1779261032000,-34.51004157,6.019e-05,2]
[422696553,1779261032000,-665.72995843,6.019e-05,2]
[422696555,1779261032000,-270.69486608,6.253e-05,2]
[422696556,1779261032000,-429.54513392,6.253e-05,2]
[422696562,1779261032000,-500.0,7.092e-05,2]
[422696558,1779261032000,-565.92255642,6.486e-05,2]
[422696565,1779261032000,-700.24,7.654e-05,2]
[422696563,1779261032000,-700.24,7.187e-05,2]
[422696572,1779261032000,-1600.0,7.771e-05,2]
[422696570,1779261032000,-9999.99,7.771e-05,2]
[422696569,1779261032000,-150.99,7.771e-05,2]
[422696573,1779261032000,-874.59964105,7.771e-05,2]
[422696568,1779261032000,-1200.0,7.771e-05,2]
[422696567,1779261032000,-300.0,7.771e-05,2]
[422696566,1779261032000,-300.0,7.771e-05,2]
[422696564,1779261032000,-700.24,7.421e-05,2]
[422696571,1779261032000,-3942.8272068,7.771e-05,2]
[422696582,1779261033000,-105488.53848589,7.772e-05,2]
[422696606,1779261033000,-500.0,7.9e-05,2]
[422696602,1779261033000,-500.0,7.9e-05,2]
[422696604,1779261033000,-500.0,7.9e-05,2]
[422696600,1779261033000,-500.0,7.9e-05,2]
[422696598,1779261033000,-500.0,7.9e-05,2]
[422696592,1779261033000,-150.0,7.772e-05,2]
[422696590,1779261033000,-150.0,7.772e-05,2]
[422696596,1779261033000,-589.54440224,7.9e-05,2]
[422696578,1779261033000,-499.99,7.771e-05,2]
[422696586,1779261033000,-1579.15,7.772e-05,2]
[422696584,1779261033000,-1628.69,7.772e-05,2]
[422696579,1779261033000,-272.87950038,7.772e-05,2]
[422696580,1779261033000,-65894.92151411,7.772e-05,2]
[422696613,1779261033000,-500.0,7.9e-05,2]
[422696577,1779261033000,-999.99,7.771e-05,2]
[422696574,1779261033000,-2473.18201437,7.771e-05,2]
[422696576,1779261033000,-1488.34,7.771e-05,2]
[422696575,1779261033000,-20827.58113778,7.771e-05,2]
[422696594,1779261033000,-700.24,7.888e-05,2]
[422696614,1779261033000,-500.0,7.9e-05,2]
[422696588,1779261033000,-150.0,7.772e-05,2]
[422696610,1779261033000,-500.0,7.9e-05,2]
[422696615,1779261033000,-500.0,7.9e-05,2]
[422696641,1779261033000,-85086.35295354,7.901e-05,2]
[422696639,1779261033000,-129555.49922723,7.901e-05,2]
[422696638,1779261033000,-500.0,7.9e-05,2]
[422696636,1779261033000,-500.0,7.9e-05,2]
[422696628,1779261033000,-74.47237483,7.9e-05,2]
[422696634,1779261033000,-500.0,7.9e-05,2]
[422696633,1779261033000,-500.0,7.9e-05,2]
[422696629,1779261033000,-425.52762517,7.9e-05,2]
[422696626,1779261033000,-500.0,7.9e-05,2]
[422696631,1779261033000,-500.0,7.9e-05,2]
[422696643,1779261033000,-1254.41808677,7.901e-05,2]
[422696612,1779261033000,-500.0,7.9e-05,2]
[422696605,1779261033000,-500.0,7.9e-05,2]
[422696624,1779261033000,-500.0,7.9e-05,2]
[422696609,1779261033000,-500.0,7.9e-05,2]
[422696617,1779261033000,-500.0,7.9e-05,2]
[422696616,1779261033000,-500.0,7.9e-05,2]
[422696618,1779261033000,-500.0,7.9e-05,2]
[422696619,1779261033000,-500.0,7.9e-05,2]
[422696623,1779261033000,-500.0,7.9e-05,2]
[422696621,1779261033000,-500.0,7.9e-05,2]
[422696656,1779261038000,-500.0,7.9e-05,2]
[422696657,1779261038000,-414.65,7.9e-05,2]
[422696655,1779261038000,-500.0,7.9e-05,2]
[422696670,1779261040000,-85.35,7.9e-05,2]
[422696671,1779261040000,-500.0,7.9e-05,2]
[422696672,1779261040000,-500.0,7.9e-05,2]
[422696676,1779261040000,-500.0,7.9e-05,2]
[422696675,1779261040000,-500.0,7.9e-05,2]
[422696674,1779261040000,-500.0,7.9e-05,2]
[422696677,1779261040000,-970.94205712,7.901e-05,2]
[422696673,1779261040000,-500.0,7.9e-05,2]
[422696705,1779261043000,-432.3998,8.94e-05,2]
[422696708,1779261043000,-48372.48938312,9.04e-05,2]
[422696709,1779261043000,-700.24,9.055e-05,2]
[422696710,1779261043000,-2000.0,9.09e-05,2]
[422696703,1779261043000,-700.24,8.588e-05,2]
[422696704,1779261043000,-700.24,8.822e-05,2]
[422696701,1779261043000,-700.24,8.355e-05,2]
[422696702,1779261043000,-1680.0,8.548e-05,2]
[422696707,1779261043000,-150.0,9.039e-05,2]
[422696698,1779261043000,-24479.3,8.001e-05,2]
[422696699,1779261043000,-700.24,8.121e-05,2]
[422696697,1779261043000,-4820.20012795,8e-05,2]
[422696696,1779261043000,-761.0,7.999e-05,2]
[422696695,1779261043000,-151.0,7.998e-05,2]
[422696694,1779261043000,-83845.1212697,7.901e-05,2]
[422696693,1779261043000,-11650.20666587,7.901e-05,2]
[422696692,1779261043000,-7883.7889883,7.901e-05,2]
[422696691,1779261043000,-535.82605147,7.901e-05,2]
[422696700,1779261043000,-10198.883424,8.178e-05,2]
[422696706,1779261043000,-1000.0,9.039e-05,2]
[422696723,1779261043000,-299.99,9.854e-05,2]
[422696711,1779261043000,-2351.0,9.403e-05,2]
[422696712,1779261043000,-673.04,9.442e-05,2]
[422696731,1779261043000,-502.0,0.00010137,2]
[422696730,1779261043000,-151.0,0.00010089,2]
[422696729,1779261043000,-6750.05627502,0.0001,2]
[422696727,1779261043000,-292.78516446,0.0001,2]
[422696726,1779261043000,-151.0,0.0001,2]
[422696725,1779261043000,-255.0,9.943e-05,2]
[422696724,1779261043000,-9999.99,9.854e-05,2]
[422696722,1779261043000,-9999.99,9.854e-05,2]
[422696728,1779261043000,-1178.13421325,0.0001,2]
[422696720,1779261043000,-653.92,9.854e-05,2]
[422696719,1779261043000,-35366.3454692,9.853e-05,2]
[422696718,1779261043000,-2500.0,9.792e-05,2]
[422696715,1779261043000,-164.08,9.658e-05,2]
[422696716,1779261043000,-200.0,9.658e-05,2]
[422696717,1779261043000,-15471.8,9.792e-05,2]
[422696713,1779261043000,-166.66,9.516e-05,2]
[422696714,1779261043000,-883.07,9.612e-05,2]
[422696721,1779261043000,-361.67,9.854e-05,2]
[422696737,1779261044000,-215.20247212,0.00010147,2]
[422696736,1779261044000,-160.0,0.00010147,2]
[422696733,1779261044000,-500.0,0.00010137,2]
[422696735,1779261044000,-208.63953863,0.00010138,2]
[422696739,1779261044000,-2000.0,0.00010226,2]
[422696738,1779261044000,-1550.12,0.0001015,2]
[422696744,1779261044000,-6058.0,0.00010638,2]
[422696741,1779261044000,-3292.0,0.00010343,2]
[422696742,1779261044000,-3633.0,0.00010638,2]
[422696745,1779261044000,-541.68872865,0.0001069,2]
[422696746,1779261044000,-127183.77308822,0.000107,2]
[422696747,1779261044000,-22845.07929,0.000107,2]
[422696740,1779261044000,-166.66,0.00010301,2]
[422696749,1779261046000,-346.300005,8.559e-05,2]
[422696748,1779261046000,-1343.39855785,8.559e-05,2]
[422696752,1779261046000,-2333.69078189,8.559e-05,2]
[422696750,1779261046000,-3896.2896008,8.559e-05,2]
[422696751,1779261046000,-451.04071483,8.559e-05,2]
[422696755,1779261107000,415.8564368,0.00024784,120]
[422696754,1779261107000,152.0,9.727e-05,7]
[422696756,1779261146000,455.66602979,0.00024784,120]
[422696757,1779261159000,255.27,0.000148,120]
[422696758,1779261160000,379.6604,5.919e-05,2]
[422696759,1779261212000,1000.0,0.00028767,120]
[422696760,1779261323000,165.0,0.00027316,120]
[422696761,1779261325000,165.0,0.00028682,120]
[422696762,1779261335000,208.0,0.00027617,120]
[422696763,1779261351000,229.75,0.000148,120]
[422696764,1779261367000,3000.0,0.00028767,120]
[422696765,1779261479000,5000.0,0.00028767,120]
[422696766,1779261489000,1000.0,0.00028767,120]
[422696767,1779261515000,394.0,0.00028767,120]
[422696768,1779261541000,206.77,0.000148,120]
[422696769,1779261553000,5000.0,0.00028767,120]
[422696770,1779261600000,150.0,0.00017795,120]
[422696771,1779261601000,209.39307908,0.00017795,120]
[422696774,1779261676000,-39.41713432,7.899e-05,2]
[422696773,1779261676000,-683.47836728,7.899e-05,2]
[422696772,1779261676000,-516.52163272,7.899e-05,2]
[422696775,1779261698000,152.0,9.728e-05,7]
[422696776,1779261730000,186.1,0.000148,120]
[422696779,1779261747000,385.49,4.495e-05,2]
[422696778,1779261747000,385.49,4.289e-05,2]
[422696777,1779261747000,385.49,4.082e-05,2]
[422696780,1779261748000,385.49,4.702e-05,2]
[422696782,1779261748000,385.49,5.115e-05,2]
[422696781,1779261748000,385.49,4.908e-05,2]
[422696783,1779261748000,385.49,5.321e-05,2]
[422696786,1779261749000,385.49,5.94e-05,2]
[422696785,1779261749000,385.49,5.734e-05,2]
[422696784,1779261749000,385.49,5.527e-05,2]
[422696787,1779261781000,-385.49,6.147e-05,2]
[422696793,1779261781000,-385.49,7.385e-05,2]
[422696791,1779261781000,-385.49,6.972e-05,2]
[422696792,1779261781000,-385.49,7.179e-05,2]
[422696790,1779261781000,-385.49,6.766e-05,2]
[422696789,1779261781000,-385.49,6.56e-05,2]
[422696788,1779261781000,-385.49,6.353e-05,2]
[422696803,1779261782000,-500.0,7.9e-05,2]
[422696805,1779261782000,-500.0,7.9e-05,2]
[422696806,1779261782000,-500.0,7.9e-05,2]
[422696808,1779261782000,-500.0,7.9e-05,2]
[422696809,1779261782000,-500.0,7.9e-05,2]
[422696804,1779261782000,-500.0,7.9e-05,2]
[422696807,1779261782000,-500.0,7.9e-05,2]
[422696802,1779261782000,-500.0,7.9e-05,2]
[422696796,1779261782000,-260.58286568,7.899e-05,2]
[422696801,1779261782000,-500.0,7.9e-05,2]
[422696799,1779261782000,-426.79475042,7.9e-05,2]
[422696798,1779261782000,-250.0,7.9e-05,2]
[422696795,1779261782000,-385.49,7.798e-05,2]
[422696797,1779261782000,-150.0,7.899e-05,2]
[422696811,1779261782000,-500.0,7.9e-05,2]
[422696794,1779261782000,-385.49,7.592e-05,2]
[422696800,1779261782000,-1000.0,7.9e-05,2]
[422696810,1779261782000,-500.0,7.9e-05,2]
[422696814,1779261782000,-500.0,7.9e-05,2]
[422696824,1779261782000,-500.0,7.9e-05,2]
[422696829,1779261782000,-500.0,7.9e-05,2]
[422696830,1779261782000,-500.0,7.9e-05,2]
[422696828,1779261782000,-500.0,7.9e-05,2]
[422696827,1779261782000,-500.0,7.9e-05,2]
[422696826,1779261782000,-500.0,7.9e-05,2]
[422696825,1779261782000,-500.0,7.9e-05,2]
[422696812,1779261782000,-500.0,7.9e-05,2]
[422696823,1779261782000,-294.05727866,7.9e-05,2]
[422696822,1779261782000,-500.0,7.9e-05,2]
[422696820,1779261782000,-500.0,7.9e-05,2]
[422696819,1779261782000,-500.0,7.9e-05,2]
[422696817,1779261782000,-500.0,7.9e-05,2]
[422696818,1779261782000,-500.0,7.9e-05,2]
[422696816,1779261782000,-500.0,7.9e-05,2]
[422696815,1779261782000,-500.0,7.9e-05,2]
[422696813,1779261782000,-500.0,7.9e-05,2]
[422696821,1779261782000,-500.0,7.9e-05,2]
[422696840,1779261783000,-500.0,7.9e-05,2]
[422696841,1779261783000,-500.0,7.9e-05,2]
[422696844,1779261783000,-500.0,7.9e-05,2]
[422696839,1779261783000,-500.0,7.9e-05,2]
[422696845,1779261783000,-500.0,7.9e-05,2]
[422696846,1779261783000,-500.0,7.9e-05,2]
[422696843,1779261783000,-500.0,7.9e-05,2]
[422696838,1779261783000,-500.0,7.9e-05,2]
[422696842,1779261783000,-500.0,7.9e-05,2]
[422696835,1779261783000,-500.0,7.9e-05,2]
[422696836,1779261783000,-500.0,7.9e-05,2]
[422696832,1779261783000,-500.0,7.9e-05,2]
[422696834,1779261783000,-500.0,7.9e-05,2]
[422696833,1779261783000,-500.0,7.9e-05,2]
[422696831,1779261783000,-500.0,7.9e-05,2]
[422696847,1779261783000,-500.0,7.9e-05,2]
[422696837,1779261783000,-500.0,7.9e-05,2]
[422696848,1779261783000,-500.0,7.9e-05,2]
[422696855,1779261783000,-500.0,7.9e-05,2]
[422696850,1779261783000,-500.0,7.9e-05,2]
[422696849,1779261783000,-500.0,7.9e-05,2]
[422696866,1779261783000,-500.0,7.9e-05,2]
[422696867,1779261783000,-326.86395718,7.9e-05,2]
[422696865,1779261783000,-500.0,7.9e-05,2]
[422696863,1779261783000,-500.0,7.9e-05,2]
[422696864,1779261783000,-500.0,7.9e-05,2]
[422696862,1779261783000,-500.0,7.9e-05,2]
[422696861,1779261783000,-500.0,7.9e-05,2]
[422696860,1779261783000,-500.0,7.9e-05,2]
[422696868,1779261783000,-17322.29114806,7.901e-05,2]
[422696859,1779261783000,-500.0,7.9e-05,2]
[422696857,1779261783000,-500.0,7.9e-05,2]
[422696858,1779261783000,-500.0,7.9e-05,2]
[422696852,1779261783000,-500.0,7.9e-05,2]
[422696856,1779261783000,-500.0,7.9e-05,2]
[422696854,1779261783000,-500.0,7.9e-05,2]
[422696851,1779261783000,-500.0,7.9e-05,2]
[422696853,1779261783000,-500.0,7.9e-05,2]
[422696869,1779261921000,167.49,0.000148,120]
[422696870,1779262023000,300.0,9e-05,3]
[422696871,1779262065000,5689.68,0.00028767,120]
[422696872,1779262111000,150.74,0.000149,120]
[422696873,1779262140000,1000.0,0.00028766,120]
[422696874,1779262191000,249.37509116,0.00024835,120]
[422696876,1779262220000,232.75008508,0.00024835,120]
[422696909,1779262232000,-447485.60645194,7.901e-05,2]
[422696912,1779262232000,-385.49,8.005e-05,2]
[422696913,1779262232000,-215.20247212,8.064e-05,2]
[422696911,1779262232000,-165.41,7.935e-05,2]
[422696921,1779262232000,-251.63413132,8.359e-05,2]
[422696910,1779262232000,-154.11064451,7.935e-05,2]
[422696915,1779262232000,-1762.7,8.097e-05,2]
[422696919,1779262232000,-164.62,8.219e-05,2]
[422696914,1779262232000,-160.0,8.074e-05,2]
[422696918,1779262232000,-1680.0,8.196e-05,2]
[422696922,1779262232000,-150.0,8.531e-05,2]
[422696917,1779262232000,-499.35013,8.178e-05,2]
[422696931,1779262232000,-1163.0,9.016e-05,2]
[422696916,1779262232000,-173.62,8.157e-05,2]
[422696923,1779262232000,-255.0,8.689e-05,2]
[422696925,1779262232000,-208.63953863,8.723e-05,2]
[422696937,1779262232000,-166.66,9.279e-05,2]
[422696936,1779262232000,-164.62,9.247e-05,2]